Cogmind - Beta 17.1 @@@ ROGUE MODE // 2026.08.31 @ 15:31:12 Player: Talon Java Result: Destroyed by S-10 Pest with Light Assault Rifle Performance ------------- Evolutions (0) 0 Regions Visited (2) 400 Robots Destroyed (23) 115 Value Destroyed (424) 424 Prototype IDs (0) 0 Alien Tech Used (0) 0 Bonus (0) 0 TOTAL SCORE: 939 Bonus ------- None Cogmind --------- Core Integrity 0/250 Matter 252/300 Energy 250/250 System Corruption 2% Temperature Cool (12) Movement Treading (160) Location -10/Mines Parts ------- > --- POWER (1) -------- Ion Engine > --- PROPULSION (2) --- Light Treads Light Treads > --- UTILITY (2) ------ Improved Heat Sink Medium Storage Unit > --- WEAPON (2) ------- Beam Cannon Light Assault Rifle > --- INVENTORY (10) --- Light Ion Engine Aluminum Leg Large Matter Pod (150) Seismic Detector Datajack Makeshift Hammer Peak State ------------ > --- POWER ------------ Ion Engine > --- PROPULSION ------- Aluminum Leg Aluminum Leg > --- UTILITY ---------- Improved Heat Sink Medium Storage Unit > --- WEAPON ----------- Particle Gun Light Assault Rifle > --- INVENTORY -------- Light Ion Engine Light Treads Light Treads Aluminum Leg Large Matter Pod Seismic Detector Beam Cannon Light Assault Rifle Datajack Makeshift Hammer [Rating: 11] Favorites ----------- Power Ion Engine Engine Ion Engine Propulsion Aluminum Leg Treads Light Treads Leg Aluminum Leg Utility Medium Storage Unit Device Seismic Detector Storage Medium Storage Unit Weapon Light Assault Rifle Energy Gun Particle Gun Energy Cannon Beam Cannon Ballistic Gun Light Assault Rifle Slashing Weapon Mining Claw Build | -11 -10 -10 ------- Run | Yrd Mat Min Slots Evolved . | . . . Power . | . . . Propulsion . | . . . Utility . | . . . Weapon . | . . . Parts Attached 19 | 2 14 3 Power 3 | . 3 . Engine 3 | . 3 . Core . | . . . Reactor . | . . . Propulsion 6 | . 4 2 Treads 2 | . . 2 Leg 4 | . 4 . Wheel . | . . . Hover . | . . . Flight . | . . . Utility 3 | 1 2 . Device 2 | 1 1 . Storage 1 | . 1 . Processor . | . . . Hackware . | . . . Protection . | . . . Artifact . | . . . Weapon 7 | 1 5 1 Energy Gun 2 | . 2 . Energy Cannon 1 | . . 1 Ballistic Gun 3 | 1 2 . Ballistic Cannon . | . . . Launcher . | . . . Special Weapon . | . . . Impact Weapon . | . . . Slashing Weapon 1 | . 1 . Piercing Weapon . | . . . Special Melee Weapon . | . . . Unidentified Prototypes . | . . . Parts Lost 5 | . 1 4 Power . | . . . Propulsion 2 | . . 2 Utility . | . . . Weapon 3 | . 1 2 Highest Loss Streak 3 | . 1 3 To Critical Strikes . | . . . Average Backups 9 | 6 9 9 Power 1 | 1 1 1 Propulsion 2 | 4 2 2 Utility 1 | . 1 2 Weapon 2 | 1 2 2 Tool/Special . | . . . Unused Backups 12 | . 8 4 Power 3 | . 3 . Propulsion 5 | . 4 1 Utility 2 | . 1 1 Weapon 1 | . . 1 Tool/Special 1 | . . 1 Average Slot Usage (%) 99 | . 100 98 Engine 14 | . 14 14 Leg 27 | . 28 26 Device 14 | . 14 14 Storage 14 | . 14 14 Energy Gun 12 | . 12 12 Ballistic Gun 14 | . 15 14 Peak Build Rating 11 | 7 10 11 Average Rating 8 | 6 8 9 On Entrance 7 | 6 7 9 Avg Prop Armor Cover (%) . | . . . Naked Turns . | . . . Heaviest Build 20 | 15 20 20 Greatest Support 20 | 20 20 20 Greatest Overweight (x) 1 | . . 1 Average Overweight (x) . | . . . Largest Inventory Capacity 10 | 8 10 10 Average Capacity 9 | 8 9 10 Most Carried 10 | 6 10 10 Average Carried 9 | 6 9 9 Final Capacity 10 | 8 10 10 Final Carried 10 | 6 10 6 Class Distribution -------------------- 64% | Scavenger-Mutant 35% | Mutant Dominant Class ---------------- Scavenger-Mutant | -10/Materials Scavenger-Mutant | -10/Mines Resources | -11 -10 -10 ----------- Run | Yrd Mat Min Matter Collected 686 | 241 428 17 Remotely . | . . . Salvage Created 757 | 112 547 98 Parts 52 | 11 37 4 Haulers Intercepted 1 | . 1 . Recyclers Shooed . | . . . Parts Field Recycled . | . . . Retrieved Matter . | . . . Parts Self-Destructed . | . . . Prevented . | . . . Parts Restored . | . . . Kills | -11 -10 -10 ------- Run | Yrd Mat Min Combat Hostiles Destroyed 14 | . 11 3 Guns 12 | . 11 1 Cannons 2 | . . 2 Classes Destroyed 6 | 1 5 . Tunneler 5 | 5 . . Hauler 1 | . 1 . Recycler 1 | . 1 . Watcher 2 | . 2 . Swarmer 5 | . 3 2 Grunt 8 | . 8 . Best Kill Streak 5 | 4 5 2 Combat Bots Only 5 | . 5 2 Max Kills in Single Turn 2 | 1 2 1 Gunslinging 1 | . 1 . Exploded . | . . . Melee . | . . . Uniques/NPCs Destroyed 1 | . . 1 YI-UF0 (-10/Mines) Combat | -11 -10 -10 -------- Run | Yrd Mat Min Hostile Shots Fired 97 | . 67 30 Missed 24 | . 17 7 Hits 73 | . 50 23 Projectile 73 | . 50 23 AOE 17 | . . 17 Critical Strikes 1 | . 1 . Damage Taken 1241 | . 604 637 Core 257 | . 112 145 Absorbed by Shields . | . . . Core Remaining (%) 100 | 100 . . Volleys Fired 60 | 7 41 12 Largest 2 | 2 2 2 Hottest 85 | 60 85 85 Shots Fired 121 | 14 82 25 Gun 112 | 14 82 16 Cannon 9 | . . 9 Launcher . | . . . Special . | . . . Kinetic 63 | 7 44 12 Thermal 43 | . 30 13 Explosive . | . . . Electromagnetic 15 | 7 8 . Robot Hit Streak 7 | 6 7 4 Robot Miss Streak 5 | 2 5 5 Penetration Max . | . . . Secondary Targets 3 | . 3 . Max Gunslinging Chain 1 | . 1 . Shots Hit Robots 67 | 8 47 12 Core Hits 38 | 5 27 6 Critical Kills . | . . . Critical Parts Destroyed . | . . . Critical Strikes 1 | . 1 . Burn 1 | . 1 . Melee Attacks 3 | . 3 . Impact . | . . . Slashing 3 | . 3 . Piercing . | . . . Sneak Attacks . | . . . Combat Hostiles . | . . . Follow-up Attacks . | . . . Damage Inflicted 877 | 102 610 165 Guns 786 | 102 606 78 Cannons 87 | . . 87 Explosions . | . . . Melee . | . . . Ramming 4 | . 4 . Kinetic 360 | 35 278 47 Thermal 395 | . 277 118 Explosive . | . . . Electromagnetic 118 | 67 51 . Impact . | . . . Slashing . | . . . Piercing . | . . . Highest Corruption 2 | . 2 2 Average Corruption 2 | . 2 2 Corruption Purged . | . . . Corruption Blocked . | . . . Effects 16 | . 7 9 Message Errors 4 | . 3 1 Matter Fused 3 | . . 3 Heat Flow Errors 1 | . 1 . Energy Discharges 3 | . 2 1 Data Loss (minor) 2 | . 1 1 Data Loss (major) 1 | . . 1 Misfires 1 | . . 1 Alerts 1 | . . 1 Overload Shots . | . . . Overflow Damage . | . . . Projectiles . | . . . Explosions . | . . . Melee . | . . . Knockbacks . | . . . Impact . | . . . Kinetic . | . . . Secondary . | . . . Self-Inflicted Damage . | . . . Shots . | . . . Rammed . | . . . Targets Rammed 1 | . 1 . Kicked 1 | . 1 . Crushed . | . . . Highest Temperature 281 | . 281 28 Average Temperature 55 | . 75 11 Received Heat Transfer 273 | . 273 . Siege Activations . | . . . Martial Activations . | . . . Shielding Activations . | . . . Robots Disrupted . | . . . Combat Hostiles . | . . . Robots Corrupted . | . . . Combat Hostiles . | . . . Parts Fried . | . . . Impact Corruptions . | . . . Robots Melted . | . . . Combat Hostiles . | . . . Parts Melted 2 | . 2 . Heat Transferred 1147 | . 888 259 Parts Sabotaged . | . . . Parts Stolen . | . . . Parts Stripped . | . . . Power Chain Reactions . | . . . Alert | -11 -10 -10 ------- Run | Yrd Mat Min Maximum Alert Level . | . . . Low Security (%) 100 | 100 100 100 Level 1 . | . . . Level 2 . | . . . Level 3 . | . . . Level 4 . | . . . Level 5 . | . . . High Security . | . . . Max Security . | . . . Peak Influence 146 | 15 146 50 Initial 6 | . 6 . Average 45 | 4 69 . Influence Increases 434 | 25 359 50 Destroy 0b10 Robot/C 260 | . 220 40 Destroy 0b10 Robot/NC 45 | 25 20 . Destroy Leader 66 | . 56 10 Successful Hack 29 | . 29 . Select Force Hacks 30 | . 30 . Destroy Structure 4 | . 4 . Influence Decreases 384 | 15 368 1 Entered New Map 5 | . 4 1 Time Decay 369 | 15 354 . Lost Part 10 | . 10 . Squads Dispatched 2 | . 2 . Investigation 1 | . 1 . Extermination . | . . . Reinforcement 1 | . 1 . Assault . | . . . Garrison . | . . . Intercept . | . . . Searches Triggered . | . . . Construction Impeded . | . . . Haulers Reinforced . | . . . Active Scanning Responses . | . . . Cargo Convoy Interrupts . | . . . Stealth | -11 -10 -10 --------- Run | Yrd Mat Min Distress Signals 3 | . 3 . Communications Jammed . | . . . Distress Signals . | . . . Times Spotted 25 | . 21 4 Peak Tracking Total 5 | . 5 3 Tactical Retreats . | . . . Traps | -11 -10 -10 ------- Run | Yrd Mat Min Traps Triggered 2 | . 2 . Indirectly . | . . . Trap Hack Attempts . | . . . Triggered . | . . . Disarmed . | . . . Reprogrammed . | . . . Reused . | . . . Traps Extracted . | . . . Installed . | . . . Triggered . | . . . Machines | -11 -10 -10 ---------- Run | Yrd Mat Min Machines Disabled . | . . . Max in Single Turn . | . . . Machines Repaired . | . . . Machines Dismantled . | . . . Machines Sabotaged . | . . . Overloaded Fab Kills . | . . . Hacking | -11 -10 -10 --------- Run | Yrd Mat Min Machines Accessed 6 | . 6 . Terminals 5 | . 5 . Fabricators . | . . . Repair Stations . | . . . Recycling Units 1 | . 1 . Scanalyzers . | . . . Garrison Access . | . . . Total Hacks 20 | . 20 . Successful 9 | . 9 . Failed 11 | . 11 . Catastrophic 1 | . 1 . Database Lockouts . | . . . Manual 19 | . 19 . Terminals 19 | . 19 . Fabricators . | . . . Repair Stations . | . . . Recycling Units 1 | . 1 . Scanalyzers . | . . . Garrison Access . | . . . Terminal Hacks . | . . . Fabricator Hacks . | . . . Repair Station Hacks . | . . . Recycling Unit Hacks . | . . . Scanalyzer . | . . . Garrison Access Hacks . | . . . Unauthorized Hacks 9 | . 9 . Terminals 8 | . 8 . Botnet 2 | . 2 . Operators 1 | . 1 . Skim 5 | . 5 . Fabricators . | . . . Repair Stations . | . . . Recycling Units 1 | . 1 . Tunnel 1 | . 1 . Scanalyzers . | . . . Garrison Access . | . . . Data Cores Recovered . | . . . Used . | . . . Hacking Detections 5 | . 5 . Full Trace Events . | . . . Feedback Events . | . . . Feedback Blocked . | . . . Robot Schematics Acquired . | . . . Robots Built . | . . . Authchips . | . . . Time . | . . . Total Robot Build Rating . | . . . Part Schematics Acquired . | . . . Parts Built . | . . . Authchips . | . . . Time . | . . . Total Part Build Rating . | . . . Part Studies Acquired . | . . . Parts Repaired . | . . . Time . | . . . Parts Recycled . | . . . Recycled Matter . | . . . Retrieved Matter . | . . . Retrieved Components . | . . . Parts Scanalyzed . | . . . Part Schematics Acquired . | . . . Parts Damaged . | . . . Bothacking | -11 -10 -10 ------------ Run | Yrd Mat Min Used RIF Installer . | . . . Robots Hacked . | . . . Non-combat . | . . . Combat . | . . . Robot Hacks Applied . | . . . Relay Couplers Released . | . . . Fabnet Peak Effective % . | . . . Robots Rewired . | . . . Allies Hacked . | . . . Hacks Repelled . | . . . Allies | -11 -10 -10 -------- Run | Yrd Mat Min Total Allies . | . . . Largest Group . | . . . Highest-Rated Group . | . . . Highest-Rated Ally . | . . . Total Orders . | . . . Ally Attacks . | . . . Total Damage . | . . . Kills . | . . . Allies Corrupted . | . . . Allies Melted . | . . . Intel | -11 -10 -10 ------- Run | Yrd Mat Min Active Infowar (turns) 1194 | 8 737 449 Seismic 1194 | 8 737 449 Robot Analysis Total . | . . . Derelict Logs Recovered 1 | . . 1 Drone Launches . | . . . Drone Recoveries . | . . . Exploration | -11 -10 -10 ------------- Run | Yrd Mat Min Turns Passed 1647 | 75 1053 519 Spaces Moved 935 | 11 589 335 Core . | . . . Treads . | . . . Legs 935 | 11 589 335 Wheels . | . . . Hover . | . . . Flight . | . . . Fastest Speed 120 | 120 120 120 Average Speed 121 | 120 120 123 Slowest Speed 190 | 120 120 190 Overloaded Moves . | . . . Propulsion Burnouts . | . . . Robots Hopped . | . . . Potential Cave-ins . | . . . Cave-ins Triggered . | . . . Exploration Rate (%) 51 | 2 97 56 Regions Visited 2 Branch Regions 1 Pre-discovered Areas 2 | . 2 . Known Exits Taken 1 | . 1 . Unknown Exits Taken 1 | 1 . . Scrap Searched . | . . . Spaces Dug 2 | . 2 . Terrain Destroyed 2 | . 2 . Melee 2 | . 2 . Projectile . | . . . AOE . | . . . Terrain Rammed . | . . . Walls Destroyed . | . . . Machines Disabled . | . . . Actions | -11 -10 -10 --------- Run | Yrd Mat Min Total 1326 | 58 849 419 Wait 283 | 39 179 65 Move 933 | 10 588 335 Hop . | . . . Pick Up 9 | . 8 1 Fast Attach 3 | 1 2 . Attach 6 | . 2 4 Detach . | . . . Swap 15 | 1 13 1 Drop 13 | . 12 1 Fire 60 | 7 41 12 Melee 3 | . 3 . Ram . | . . . Kick 1 | . 1 . Crush . | . . . Escape Stasis . | . . . Rewire . | . . . Trap . | . . . Miscellaneous . | . . . Route ------- -11/Scrapyard -10/Materials (discovered 6 exits: *Mat x3 / *Min x2 / Sub) -10/Mines History --------- Turn | Location | Event 54 | -11/Scrapyard | Discovered new exit (range 2) 76 | -11/Scrapyard | Entered Materials 301 | -10/Materials | Build established: Mutant 443 | -10/Materials | Discovered new exit (range 16) 491 | -10/Materials | Discovered new exit (range 16) 754 | -10/Materials | Discovered new exit (range 16) 836 | -10/Materials | Discovered new exit (range 9) 865 | -10/Materials | Discovered new exit (range 15) 941 | -10/Materials | Identified exit to Mines 941 | -10/Materials | Identified exit to Materials 941 | -10/Materials | Identified exit to Subcaves 986 | -10/Materials | Learned location of 1 exit from Recycling 1019 | -10/Materials | Loaded intel: 33 machine locations 1043 | -10/Materials | Learned location of 2 exits from Subcaves 1048 | -10/Materials | Build established: Scavenger-Mutant 1078 | -10/Materials | Learned location of 2 exits from Subcaves 1123 | -10/Materials | Learned location of 2 exits from Subcaves 1129 | -10/Materials | Entered Mines 1162 | -10/Mines | Learned Materials trap positions 1373 | -10/Mines | A weapon hastily lodged in a ceiling crevice suddenly fell to the ground 1589 | -10/Mines | Core integrity fell below 50% 1596 | -10/Mines | Core integrity fell below 20% 1600 | -10/Mines | Destroyed YI-UF0 1619 | -10/Mines | Lost 3 parts (1n2w) 1648 | -10/Mines | Destroyed by S-10 Pest with Light Assault Rifle Last Messages --------------- 01496_ System corrupted: Energy discharge (-80). 01496_ K-01 Serf collects debris. 01576_ The unstable cave ceiling collapses. 01585_ Particle Gun destroyed. 01588_ Aluminum Leg destroyed. 01588_ Lgt. Assault Rifle destroyed. 01591_ The unstable cave ceiling collapses. 01594_ System corrupted: IFF burst signal emitted. 01594_ The unstable cave ceiling collapses. 01595_ YI-UF0 mumbles something. 01595_ The unstable cave ceiling collapses. 01600_ YI-UF0 destroyed. 01602_ The unstable cave ceiling collapses. 01609_ System corrupted: Matter fused (-9). 01610_ The unstable cave ceiling collapses. 01632_ Aluminum Leg destroyed. 01635_ The unstable cave ceiling collapses. 01635_ S-10 Pest destroyed. 01644_ Acquired 17 matter. Map ----- +----------------------------------------------------+ | ????????????????????? ???????????????# #??? #??? | | ????????????????? ## ???????????????# #?? #??? | | ??????????????? ???????????????# ### ###? | | ?????????????# ???????????????# ## | | ??????????? ## ???????????????# # | | ??????????? ####???????????# ### # | | ??????????? ????????????# #???# # | | ???????????? = ????????????# #????# | | ????????????? ????????????# #???## | | ?????????????? # ?????????????# #?### | | ??????????????? ####?????????# ### | | ???????????????? # # # #?????????# ## | | ????????????????## # ###???????# | | ????????????????# % ###?????#### | | ????????????????# # ###??????# | | ?????????????????## #??????# | | ?????????????????# # ## ##??????##### | | ?????????????????## # #??????????## | | ??????????????????### ### #???????????# | | ????????????????????## # # ##???????????# | | ?????????????????????## ### #????????????# | | ??????????????????????# # ##????????????# | | ??????????????????????# # ##########??????## | | ??????????????????????# # #?????## | | ??????????????????????#[# ###### #????## | | ??????????????????????#@#######????# #??### | | ?????????????????????[s=#??????????# #?## | | ??????????????????? ####??????????# ### | | ????????????????? ???????????????# | | ????????????????###????????????????###### | | ????????????????????????????????????????## | | ?????????????????????????????????????????### | | ???????????????????????????????????????????## | | ????????????????????????????????????????????## | | ?????????????????????????????????????????????### | | ???????????????????????????????????????????????? | | ???????????????????????????????????????????????? | | ???????????????????????????????????????????????? | | ???????????????????????????????????????????????? | | ???????????????????????????????????????????????? | | ???????????????????????????????????????????????? | | | | | | | | | | | | | | | | | | | +----------------------------------------------------+ Best States ------------- Heat Dissipation 39 Energy Generation 10 Energy Capacity 250 Matter Stores 300 Matter Capacity 300 Sight Range 16 Terrain Scan Density 10 Evasion (%) 55 Recoil Reduction 2 Item Schematics ----------------- None Robot Schematics ------------------ None Fabricated ------------ Nothing Repaired ---------- Nothing Studied --------- None Alien Tech Used ----------------- None Achievements -------------- None Challenges ------------ None Game ------ Seed WarlordRingTerrabomb Manual? 0 Play Time 00:21:41 Cumulative 255.4 hours Start 2026.08.31 @ 15:08:04 End 2026.08.31 @ 15:31:12 Sessions 1 Manual Loads 0 Difficulty Rogue Special Mode None Game No. 128 Rogue 128 Adventurer 0 Explorer 0 Win Type - Total 2 Types 2/0/0/0/0/0/0/0/0/0 Lore% 44 Gallery% 56 Achievement% 44 Wizard Run 0 Options --------- Layout 2 ASCII 0 Keyboard 0 Movement Mouse Keybinds 1 Fullscreen 1 Font 32/Terminus Map View 50x44 Zoom Use 0% Tactical HUD 1 Map Filters NONE Filters NONE Steam 1 RUN: 10f4d9c0-9f95-44fb-8232-7301444b364a